bitfinex-derivatives/quotes_BTCF0:USTF0_20251118
["timestamp","ask_amount","ask_price","bid_price","bid_amount"]
[1763493687455,0.02181,93554.0,93553.0,0.02154039]
[1763493687757,0.04335,93554.0,93553.0,0.04314039]
[1763493690947,0.04335,93554.0,93553.0,0.00016039]
[1763493692061,0.04335,93554.0,93553.0,0.04314039]
[1763493692257,0.40415,93563.0,93562.0,0.04298]
[1763493692458,0.04335,93554.0,93553.0,0.04314039]
[1763493692651,0.04335,93554.0,93553.0,0.00016039]
[1763493692857,0.40415,93554.0,93553.0,0.00016039]
[1763493693559,0.66203,93554.0,93553.0,0.00016039]
[1763493694353,0.66203,93554.0,93553.0,9e-08]
[1763493694668,0.66203,93554.0,93536.0,0.01282]
[1763493694669,0.04335,93539.0,93538.0,0.16168]
[1763493694857,0.04335,93539.0,93538.0,0.04298]
[1763493695257,0.04335,93539.0,93538.0,0.02138]
[1763493695458,0.04335,93539.0,93538.0,0.04298]
[1763493695664,0.04335,93539.0,93538.0,0.02138]
[1763493696369,0.04335,93534.0,93533.0,0.38218]
[1763493697066,0.04335,93534.0,93533.0,0.40378]
[1763493697870,0.04554803,93530.0,93529.0,0.00016039]
[1763493698063,0.00219803,93530.0,93529.0,0.04314039]
[1763493698664,0.02400803,93530.0,93529.0,0.04314039]
[1763493698860,0.04554803,93530.0,93529.0,0.04314039]
[1763493699062,0.04554803,93530.0,93529.0,0.00016039]
[1763493699268,0.04554803,93530.0,93529.0,0.04314039]
[1763493700266,0.15253253,93530.0,93529.0,0.04314039]
[1763493701772,0.10918253,93530.0,93529.0,0.04314039]
[1763493702570,0.15253253,93530.0,93529.0,0.04314039]
[1763493703974,0.15253253,93530.0,93529.0,0.02154039]
[1763493704173,0.15253253,93530.0,93529.0,0.04314039]
[1763493705076,0.15253253,93530.0,93529.0,0.00016039]
[1763493706597,0.10918253,93530.0,93529.0,0.04314039]
[1763493707193,0.13099253,93530.0,93529.0,0.04314039]
[1763493708085,0.15253253,93530.0,93529.0,0.04314039]
[1763493709290,0.15253253,93530.0,93529.0,0.00016039]
[1763493712398,0.41045253,93530.0,93529.0,0.00016039]
[1763493713397,0.1070005,93516.0,93515.0,0.03821155]
[1763493713592,0.5111505,93516.0,93513.0,0.03821155]
[1763493713791,0.04335,93514.0,93513.0,0.04298]
[1763493714693,0.4896106,93516.0,93515.0,0.04298]
[1763493714894,0.5111506,93516.0,93515.0,0.04298]
[1763493716495,0.107004,93513.0,93512.0,0.02138]
[1763493716696,0.150354,93513.0,93512.0,0.02138]
[1763493716897,0.150354,93513.0,93512.0,0.04298]
[1763493717297,0.150354,93513.0,93512.0,0.0567]
[1763493720191,0.3608,93516.0,93515.0,0.04434]
[1763493720504,0.15378403,93520.0,93519.0,0.04434]
[1763493720906,0.10919403,93520.0,93519.0,0.04434]
[1763493721499,0.00219803,93520.0,93519.0,0.40514]
[1763493722204,0.00016039,93523.0,93522.0,0.04434]
[1763493723801,0.04475039,93523.0,93522.0,0.04434]
[1763493723998,0.04475039,93523.0,93522.0,0.08259617]
[1763493724199,0.04475039,93523.0,93522.0,0.04434]
[1763493725604,0.04475039,93523.0,93522.0,0.08261157]
[1763493726102,0.04475039,93523.0,93522.0,0.04434]
[1763493728001,0.00016039,93523.0,93522.0,0.04434]
[1763493731014,0.00016039,93523.0,93522.0,0.10165732]
[1763493731306,0.07215099,93525.0,93524.0,0.04434]
[1763493731611,0.07215099,93525.0,93524.0,0.10175093]
[1763493732310,0.11674099,93525.0,93524.0,0.10175093]
[1763493732512,0.09367099,93525.0,93524.0,0.10175093]
[1763493732701,0.07215099,93525.0,93524.0,0.10175093]
[1763493733914,0.09367099,93525.0,93524.0,0.10175093]
[1763493735114,0.11674099,93525.0,93524.0,0.10175093]
[1763493735708,0.11674099,93525.0,93524.0,0.04434]
[1763493736314,0.04459,93524.0,93523.0,0.05741093]
[1763493736616,0.04459,93522.0,93521.0,0.05741093]
[1763493736800,0.04459,93522.0,93521.0,0.10175093]
[1763493738412,0.04459,93522.0,93521.0,0.04434]
[1763493738913,0.04459,93522.0,93521.0,0.10175093]
[1763493739112,0.04459,93522.0,93521.0,0.04434]
[1763493740814,0.04459,93512.0,93511.0,0.04434]
[1763493741008,0.01265,93528.0,93520.0,0.02101]
[1763493741009,0.15809083,93521.0,93520.0,0.02101]
[1763493741317,0.04365,93511.0,93510.0,0.40468]
[1763493741506,0.04365,93511.0,93510.0,0.3608]
[1763493741903,0.04365,93508.0,93506.0,0.05742014]
[1763493742120,0.04365,93507.0,93506.0,0.05742014]
[1763493742310,0.04365,93507.0,93504.0,0.00016039]
[1763493742311,0.04365,93507.0,93505.0,0.05742014]
[1763493742511,0.150662,93506.0,93505.0,0.07843014]
[1763493742706,0.150662,93506.0,93505.0,0.05742014]
[1763493742910,0.150662,93506.0,93477.0,0.13403532]
[1763493742911,0.00855,93496.0,93491.0,0.03826717]
[1763493743113,0.04365,93490.0,93489.0,0.04388]
[1763493743306,0.04584803,93490.0,93489.0,0.04388]
[1763493743708,0.04365,93487.0,93486.0,0.00026742]
[1763493743912,0.04365,93473.0,93472.0,0.04388]
[1763493744113,0.40345,93473.0,93472.0,0.04388]
[1763493744815,0.02112,93473.0,93472.0,0.05655]
[1763493745013,0.3608,93481.0,93480.0,0.05655]
[1763493745214,0.38292,93481.0,93480.0,0.05655]
[1763493745910,0.40445,93481.0,93480.0,0.04388]
[1763493747008,0.40445,93481.0,93480.0,0.02101]
[1763493747414,0.04352,93475.0,93474.0,0.40515]
[1763493747616,0.05746,93480.0,93479.0,0.04435]
[1763493747808,0.04571803,93480.0,93479.0,0.04435]
[1763493748009,0.05965803,93480.0,93479.0,0.04435]
[1763493749216,0.04571803,93480.0,93479.0,0.04435]
[1763493751217,0.02382803,93480.0,93479.0,0.04435]
[1763493751420,0.04571803,93480.0,93479.0,0.04435]
[1763493754013,0.00219803,93480.0,93479.0,0.1513929]
[1763493754219,0.04368039,93496.0,93495.0,0.04435]
[1763493754515,0.00016039,93496.0,93495.0,0.04435]
[1763493755215,0.00016039,93496.0,93495.0,0.40515]
[1763493755413,0.40432,93518.0,93517.0,0.02304]
[1763493755613,0.66228,93518.0,93517.0,0.02304]
[1763493756013,0.66228,93518.0,93517.0,0.04435]
[1763493756317,0.04352,93509.0,93508.0,0.04451039]
[1763493757507,0.40432,93509.0,93508.0,0.04451039]
[1763493758718,0.40432,93509.0,93508.0,0.02320039]
[1763493758918,0.40432,93509.0,93508.0,0.04451039]
[1763493760723,0.40432,93509.0,93508.0,0.00016039]
[1763493763218,0.40432,93509.0,93508.0,0.02320039]
[1763493764425,0.40432,93509.0,93508.0,0.04451039]
[1763493767417,0.3608,93509.0,93508.0,0.04451039]
[1763493767817,0.40432,93509.0,93508.0,0.04451039]
[1763493769422,0.40432,93509.0,93508.0,0.00016039]
[1763493771130,0.66228,93509.0,93508.0,0.00016039]
[1763493771426,0.04352,93487.0,93486.0,0.40515]
[1763493771821,0.01394,93488.0,93477.0,0.3608]
[1763493772130,0.01394,93488.0,93477.0,0.40515]
[1763493772131,0.04352,93478.0,93477.0,0.40515]
[1763493773228,0.04352,93478.0,93477.0,0.40615]
[1763493773927,0.00219803,93480.0,93479.0,0.04435]
[1763493774130,0.04571803,93480.0,93479.0,0.04435]
[1763493774929,0.00219803,93480.0,93479.0,0.04435]
[1763493775431,0.02382803,93480.0,93479.0,0.04535]
[1763493776025,0.00219803,93480.0,93479.0,0.04535]
[1763493776231,0.00016039,93487.0,93486.0,0.1513849]
[1763493776232,0.04368039,93487.0,93486.0,0.1513849]
[1763493777332,0.04368039,93487.0,93486.0,0.1523849]
[1763493778038,0.04368039,93487.0,93486.0,0.1533849]
[1763493779438,0.04368039,93487.0,93486.0,0.04635]
[1763493780131,0.04368039,93487.0,93486.0,0.002]
[1763493780930,0.04368039,93487.0,93486.0,0.02515]
[1763493781335,0.04368039,93487.0,93486.0,0.002]
[1763493781841,0.04368039,93487.0,93486.0,0.02515]
[1763493782038,0.04368039,93487.0,93486.0,0.04738]
[1763493782436,0.04368039,93487.0,93486.0,0.02515]
[1763493782943,0.04368039,93487.0,93486.0,0.002]
[1763493783439,0.04279,93469.0,93468.0,0.00025649]
[1763493783940,0.04279,93469.0,93468.0,0.02340649]
[1763493784740,0.04279,93469.0,93468.0,0.02440649]
[1763493784954,0.04279,93469.0,93468.0,0.02640649]
[1763493785149,0.04279,93469.0,93468.0,0.04863649]
[1763493785358,0.04279,93469.0,93468.0,0.04763649]
[1763493785556,0.04279,93469.0,93468.0,0.04563649]
[1763493786948,0.02102,93469.0,93468.0,0.04563649]
[1763493787147,0.00219803,93470.0,93469.0,0.1524344]
[1763493787857,0.04498803,93470.0,93469.0,0.04538]
[1763493789462,0.04498803,93470.0,93469.0,0.1524344]
[1763493789959,0.04498803,93470.0,93469.0,0.04538]
[1763493790351,0.04498803,93470.0,93469.0,0.02315]
[1763493790553,0.04498803,93470.0,93469.0,0.04538]
[1763493793353,0.00219803,93470.0,93469.0,0.5132344]
[1763493793551,0.3608,93494.0,93469.0,0.5132344]
[1763493793552,0.30079,93486.0,93485.0,0.04538]
[1763493793858,0.04279,93486.0,93485.0,0.04538]
[1763493794255,0.04279,93472.0,93471.0,0.05804]
[1763493794460,0.04279,93469.0,93468.0,0.00025649]
[1763493796658,0.04279,93451.0,93450.0,0.04538]
[1763493796956,0.04279,93444.0,93443.0,0.04538]
[1763493797159,0.04279,93442.0,93441.0,0.3608]
[1763493797362,0.04279,93442.0,93441.0,0.40618]
[1763493797662,0.0428861,93442.0,93441.0,0.40618]
[1763493797958,9.61e-05,93442.0,93441.0,0.40618]
[1763493798156,0.66159,93450.0,93449.0,0.02315]
[1763493798357,0.04279,93444.0,93443.0,0.0009039]
[1763493798858,0.04279,93442.0,93441.0,0.40718]
[1763493799066,0.04279,93442.0,93441.0,0.40818]
[1763493799263,0.04279,93442.0,93441.0,0.5152664]
[1763493800459,0.04279,93448.0,93447.0,0.04538]
[1763493800668,0.04279,93448.0,93447.0,0.05804]
[1763493802173,0.04279,93448.0,93447.0,0.04538]
[1763493802363,0.04279,93448.0,93447.0,0.04638]
[1763493804558,0.04279,93448.0,93447.0,0.05967]
[1763493804764,0.02102,93448.0,93447.0,0.05967]
[1763493805666,0.36299803,93450.0,93449.0,0.04303]
[1763493805969,0.38568803,93450.0,93449.0,0.04303]
[1763493806276,0.40878803,93450.0,93449.0,0.04303]
[1763493806866,0.04579,93448.0,93447.0,0.001]
[1763493807370,0.04467,93435.0,93434.0,0.5124637]
[1763493807567,0.04467,93435.0,93434.0,0.40537]
[1763493808272,0.04367,93435.0,93434.0,0.40537]
[1763493809073,0.04367,93435.0,93434.0,0.40637]
[1763493809462,0.0344,93447.0,93446.0,0.02101]
[1763493809665,0.0344,93447.0,93446.0,0.04398]
[1763493809666,0.04363,93447.0,93446.0,0.04398]
[1763493809874,0.30167,93447.0,93446.0,0.04398]
[1763493810773,0.04363,93447.0,93446.0,0.04498]
[1763493814973,0.36299803,93450.0,93449.0,0.04398]
[1763493815175,0.40662803,93450.0,93449.0,0.1510573]
[1763493815669,0.36299803,93450.0,93449.0,0.1510573]
[1763493815877,0.04582803,93450.0,93449.0,0.1510573]
[1763493817184,0.00219803,93450.0,93449.0,0.1510573]
[1763493818276,0.00016048,93451.0,93450.0,0.04398]
[1763493818579,0.02181048,93451.0,93450.0,0.04398]
[1763493818979,0.00016048,93451.0,93450.0,0.04398]
[1763493820685,0.25808,93464.0,93463.0,0.1510412]
[1763493820686,0.30171,93464.0,93463.0,0.1510412]
[1763493820890,0.3608,93477.0,93468.0,0.1510355]
[1763493821073,0.04363,93468.0,93467.0,0.04398]
[1763493823987,0.02384803,93470.0,93469.0,0.04398]
[1763493824488,0.04582803,93470.0,93469.0,0.04398]
[1763493825585,0.04582803,93470.0,93469.0,0.1510344]
[1763493826488,0.00219803,93470.0,93469.0,0.1510344]
[1763493826786,0.04379048,93477.0,93476.0,0.1510263]
[1763493827282,0.00016048,93477.0,93476.0,0.1510263]
[1763493827877,0.38245,93490.0,93489.0,0.1280415]
[1763493828079,0.40662803,93490.0,93489.0,0.1510115]
[1763493828285,0.04582803,93490.0,93489.0,0.1510115]
[1763493828487,0.50414422,93510.0,93499.0,0.1509991]
[1763493828488,0.04363,93500.0,93499.0,0.1509991]
[1763493828694,0.07045394,93500.0,93499.0,0.1509991]
[1763493829093,0.07045347,93500.0,93499.0,0.04398]
[1763493829292,0.04582803,93500.0,93499.0,0.04398]
[1763493829794,0.04363,93491.0,93490.0,0.04414048]
[1763493829986,0.04363,93491.0,93490.0,0.15117078]
[1763493831598,0.04363,93491.0,93490.0,0.04414048]
[1763493834002,0.04363,93491.0,93490.0,0.15117078]
[1763493834201,0.04363,93491.0,93490.0,0.04414048]
[1763493840695,0.04363,93491.0,93490.0,0.00016048]
[1763493842093,0.04493,93472.0,93471.0,0.40664]
[1763493842912,0.40573,93483.0,93482.0,0.02323]
[1763493843099,0.04493,93472.0,93471.0,0.41978]
[1763493843405,0.04712803,93480.0,93479.0,0.04584]
[1763493844099,0.04612803,93480.0,93479.0,0.04584]
[1763493844699,0.02325803,93480.0,93479.0,0.04584]
[1763493844894,0.02325803,93480.0,93479.0,0.04784]
[1763493845306,0.04612803,93480.0,93479.0,0.04784]
[1763493845902,0.04612803,93480.0,93479.0,0.002]
[1763493850411,0.07078649,93480.0,93479.0,0.002]
[1763493852812,0.07078649,93480.0,93479.0,0.001]
[1763493853011,0.04493,93465.0,93464.0,0.3038]
[1763493853605,0.04493,93465.0,93464.0,0.31694]
[1763493854508,0.04493,93465.0,93464.0,0.31794]
[1763493856112,0.04493,93465.0,93464.0,0.04684]
[1763493857417,0.3608,93469.0,93464.0,0.04684]
[1763493857418,0.38286,93469.0,93468.0,0.04584]
[1763493857806,0.40573,93469.0,93468.0,0.04584]
[1763493858205,0.38286,93469.0,93468.0,0.04584]
[1763493858714,0.3608,93469.0,93468.0,0.04584]
[1763493860308,0.38286,93469.0,93468.0,0.04584]
[1763493861417,0.40573,93469.0,93468.0,0.04584]
[1763493863019,0.00193064,93470.0,93469.0,0.1511744]
[1763493863207,0.40528,93483.0,93482.0,0.04412]
[1763493863404,0.42975239,93483.0,93482.0,0.04412]
[1763493864115,0.06895239,93483.0,93482.0,0.04412]
[1763493865318,0.02272,93483.0,93482.0,0.04412]
[1763493865504,0.04448,93483.0,93482.0,0.04412]
[1763493874232,0.04448,93483.0,93482.0,0.1511595]
[1763493875330,0.00016048,93492.0,93491.0,0.1526792]
[1763493875538,0.02181048,93492.0,93491.0,0.1526792]
[1763493875926,0.00016048,93492.0,93491.0,0.1526792]
[1763493876330,0.02181048,93492.0,93491.0,0.1526792]
[1763493876729,0.00016048,93492.0,93491.0,0.1526792]
[1763493877238,0.04288048,93492.0,93491.0,0.1526792]
[1763493877539,0.00016048,93492.0,93491.0,0.1526792]
[1763493878432,0.02181048,93492.0,93491.0,0.1526792]
[1763493879332,0.04288048,93492.0,93491.0,0.1526792]
[1763493881425,0.04288048,93492.0,93491.0,0.04565]
[1763493888242,0.25796,93507.0,93501.0,0.1070124]
[1763493888440,0.25796,93507.0,93492.0,0.1070273]
[1763493888441,0.30068,93507.0,93506.0,0.04565]
[1763493888834,0.30068,93507.0,93506.0,0.02301]
[1763493889545,0.30068,93507.0,93499.0,0.1526695]
[1763493889546,0.04272,93500.0,93499.0,0.1526695]
[1763493889751,0.04465064,93500.0,93499.0,0.1526695]
[1763493890137,0.04465064,93500.0,93499.0,0.04565]
[1763493890342,0.05661,93498.0,93497.0,0.3608]
[1763493890639,0.05661,93498.0,93497.0,0.38381]
[1763493890847,0.05661,93498.0,93497.0,0.40645]
[1763493892737,0.04272,93498.0,93497.0,0.40645]
[1763493894747,0.02165,93498.0,93497.0,0.40645]
[1763493896046,0.04272,93498.0,93497.0,0.40645]
[1763493897250,0.04272,93498.0,93497.0,0.5134723]
[1763493899254,0.04272,93498.0,93497.0,0.40645]
[1763493899448,0.05534,93498.0,93497.0,0.40645]
[1763493900047,0.05534,93498.0,93497.0,0.5134723]
[1763493900247,0.04272,93498.0,93497.0,0.5134723]
[1763493900647,0.04272,93498.0,93497.0,0.40645]
[1763493900847,0.00193064,93500.0,93499.0,0.04534]
[1763493901252,0.30133,93507.0,93506.0,0.04534]
[1763493901557,0.32564315,93507.0,93506.0,0.04534]
[1763493902858,0.06768315,93507.0,93506.0,0.152352]
[1763493903543,0.06768315,93507.0,93506.0,0.04534]
[1763493905153,0.02431315,93507.0,93506.0,0.04534]
[1763493905361,0.06768315,93507.0,93506.0,0.04534]
[1763493908767,0.02431315,93507.0,93506.0,0.04534]
[1763493909069,0.02431315,93507.0,93506.0,0.30318]
[1763493911260,0.04594315,93507.0,93506.0,0.410192]
[1763493911464,0.06768315,93507.0,93506.0,0.30318]
[1763493911967,0.06768315,93507.0,93506.0,0.04534]
[1763493913765,0.04337,93501.0,93500.0,0.08058877]
[1763493914063,0.04337,93501.0,93500.0,0.04634006]
[1763493920272,0.41679,93510.0,93509.0,0.04534]
[1763493920473,0.4429111,93510.0,93509.0,0.04534]
[1763493921274,0.4302911,93510.0,93509.0,0.04534]
[1763493921467,0.4440711,93510.0,93509.0,0.04534]
[1763493921667,0.4440711,93510.0,93509.0,0.02291]
[1763493922078,0.04312,93505.0,93504.0,0.10266998]
[1763493922376,0.04312,93505.0,93504.0,0.045]
[1763493922568,0.04312,93505.0,93504.0,0.1520143]
[1763493923173,0.04312,93505.0,93504.0,0.20968428]
[1763493923577,0.04312,93505.0,93504.0,0.10266998]
[1763493925780,0.04312,93505.0,93504.0,0.045]
[1763493926169,0.04312,93505.0,93504.0,0.10266998]
[1763493926680,0.04312,93505.0,93504.0,0.22250428]
[1763493926865,0.40392,93510.0,93509.0,0.045]
[1763493927069,0.40585064,93510.0,93509.0,0.045]
[1763493927569,0.36273064,93510.0,93509.0,0.045]
[1763493927771,0.3608,93510.0,93509.0,0.045]
[1763493928077,0.3608,93510.0,93507.0,0.1646166]
[1763493928078,0.00016048,93516.0,93515.0,0.1496517]
[1763493928472,0.00016048,93516.0,93515.0,0.20723842]
[1763493928677,0.04403731,93526.0,93525.0,0.04265]
[1763493928871,0.06822191,93526.0,93525.0,0.04265]
[1763493929871,0.06922191,93526.0,93525.0,0.04265]
[1763493930471,0.07022191,93526.0,93525.0,0.04265]
[1763493932278,0.02498731,93526.0,93525.0,0.04265]
[1763493932783,0.04603731,93526.0,93525.0,0.04265]
[1763493932977,0.02498731,93526.0,93525.0,0.04265]
[1763493933777,0.04603731,93526.0,93525.0,0.04265]
[1763493934185,0.00226731,93526.0,93525.0,0.04265]
[1763493934387,0.02498731,93526.0,93525.0,0.04265]
[1763493934680,0.04603731,93526.0,93525.0,0.04265]
[1763493934985,0.02382691,93526.0,93525.0,0.04265]
[1763493935181,0.04487691,93526.0,93525.0,0.04265]
[1763493938684,0.02382691,93526.0,93525.0,0.04265]
[1763493938989,0.04487691,93526.0,93525.0,0.04265]
[1763493939689,0.04487691,93526.0,93525.0,0.02152]
[1763493940281,0.04487691,93526.0,93525.0,0.04265]
[1763493941585,0.02382691,93526.0,93525.0,0.1496403]
[1763493942088,0.00110691,93526.0,93525.0,0.1496403]
[1763493942587,0.00110691,93526.0,93525.0,0.5104403]
[1763493944186,0.3608,93547.0,93537.0,0.04265]
[1763493944585,0.40457,93538.0,93537.0,0.04265]
[1763493945081,0.04377,93538.0,93537.0,0.04265]
[1763493945386,0.04477,93538.0,93537.0,0.04265]
[1763493946393,0.001,93538.0,93537.0,0.04265]
[1763493946781,0.04477,93538.0,93537.0,0.04265]
[1763493946986,0.63151,93558.0,93557.0,0.04265]
[1763493946987,0.67528,93558.0,93557.0,0.04265]
[1763493947190,0.42880441,93558.0,93557.0,0.04265]
[1763493947386,0.40457,93558.0,93557.0,0.04265]
[1763493948689,0.04377,93558.0,93557.0,0.04265]
[1763493948888,0.02272,93558.0,93557.0,0.04265]
[1763493949092,0.02672,93558.0,93557.0,0.04265]
[1763493949812,0.001,93558.0,93557.0,0.40345]
[1763493950002,0.04577,93558.0,93557.0,0.40345]
[1763493950681,0.04477,93558.0,93557.0,0.40345]
[1763493950893,0.04377,93550.0,93549.0,0.40345]
[1763493951095,0.04570064,93550.0,93549.0,0.66117]
[1763493951495,0.04470064,93550.0,93549.0,0.66117]
[1763493953895,0.04470064,93550.0,93549.0,0.40345]
[1763493960591,0.04277,93550.0,93549.0,0.40345]
[1763493960796,0.04507,93562.0,93558.0,0.01369]
[1763493961004,0.04507,93562.0,93561.0,0.04306]
[1763493961302,0.04507,93561.0,93560.0,0.00100006]
[1763493961489,0.06926813,93561.0,93560.0,0.00100006]
[1763493964500,0.06926813,93561.0,93560.0,0.02243006]
[1763493964704,0.06926813,93561.0,93560.0,0.00100006]
[1763493966794,0.01283,93552.0,93549.0,0.3608]
[1763493966998,0.04507,93549.0,93548.0,0.00016039]
[1763493967199,0.06928108,93549.0,93548.0,0.00016039]
[1763493967399,0.06928108,93549.0,93548.0,0.02159039]
[1763493968007,0.06928108,93549.0,93548.0,0.04322039]
[1763493968208,0.04507,93549.0,93548.0,0.04322039]
[1763493969105,0.04507,93549.0,93548.0,0.02159039]
[1763493969406,0.04507,93549.0,93548.0,0.04322039]
[1763493969810,0.04507,93549.0,93548.0,0.00016039]
[1763493970702,0.06930344,93549.0,93548.0,0.00016039]
[1763493970896,0.06930344,93549.0,93523.0,0.25764]
[1763493970897,0.04507,93532.0,93531.0,0.40386]
[1763493972007,0.04507,93532.0,93531.0,0.40486]
[1763493972316,0.04507,93532.0,93531.0,0.40586]
[1763493975811,0.04507,93540.0,93539.0,0.04306]
[1763493976013,0.00016014,93541.0,93540.0,0.04406006]
[1763493976410,0.00016014,93541.0,93540.0,0.40486006]
[1763493978200,0.00016014,93541.0,93540.0,0.40586006]
[1763493979015,0.00016014,93541.0,93540.0,0.42055006]
[1763493979608,0.02233014,93541.0,93540.0,0.42055006]
[1763493980009,0.04523014,93541.0,93540.0,0.42055006]
[1763493981310,0.04523014,93541.0,93540.0,0.04606006]
[1763493984010,0.04523014,93541.0,93540.0,0.00300006]
[1763493984407,0.04523014,93541.0,93540.0,0.02611006]
[1763493985215,0.04523014,93541.0,93540.0,0.04772006]
[1763493989824,0.00016014,93541.0,93540.0,0.06077006]
[1763493990025,0.3608,93552.0,93551.0,0.04345]
[1763493990026,0.40349,93552.0,93551.0,0.04345]
[1763493990224,0.42750778,93552.0,93551.0,0.04345]
[1763493992430,0.42750778,93552.0,93551.0,0.02149]
[1763493992824,0.44025778,93552.0,93551.0,0.02149]
[1763493993324,0.04269,93551.0,93550.0,0.00100006]
[1763493993530,0.04269,93551.0,93542.0,0.04361039]
[1763493993531,0.04269,93543.0,93542.0,0.04361039]
[1763493996429,0.04269,93543.0,93542.0,0.10113631]
[1763493998423,0.06673892,93543.0,93542.0,0.04361039]
[1763494004621,0.04554892,93543.0,93542.0,0.15058119]
[1763494004831,0.06673892,93543.0,93542.0,0.04361039]
[1763494008330,0.04269,93543.0,93542.0,0.04361039]
[1763494011636,0.06687951,93543.0,93542.0,0.00016039]
[1763494011934,0.06687951,93543.0,93526.0,0.19529161]
[1763494011935,0.03402,93530.0,93528.0,0.05763879]
[1763494012141,0.04269,93526.0,93522.0,0.05763879]
[1763494012333,0.04269,93521.0,93520.0,0.00100006]
[1763494013033,0.04269,93521.0,93520.0,0.04445006]
[1763494013237,0.04269,93521.0,93520.0,0.00100006]
[1763494013442,0.0215,93521.0,93520.0,0.04445006]
[1763494013631,0.0205,93521.0,93520.0,0.04445006]
[1763494013832,0.04169,93521.0,93520.0,0.04445006]
[1763494014841,0.40349,93529.0,93528.0,0.0565]
[1763494019641,0.00209103,93530.0,93529.0,0.1520557]
[1763494020039,0.02457103,93530.0,93529.0,0.1520557]
[1763494020340,0.04556,93527.0,93526.0,0.40587]
[1763494020641,0.04535682,93527.0,93526.0,0.40587]
[1763494021025,0.04535682,93527.0,93526.0,0.04507]
[1763494025543,0.04556,93520.0,93519.0,0.40587]
[1763494025744,0.04749064,93520.0,93519.0,0.40587]
[1763494027238,0.05839,93516.0,93515.0,0.02248]
[1763494027429,0.05839,93516.0,93515.0,0.04507]
[1763494027840,0.04556,93516.0,93515.0,0.04507]
[1763494032445,0.04556,93512.0,93511.0,0.00016039]
[1763494032743,0.40636,93512.0,93511.0,0.00016039]
[1763494033146,0.04556,93500.0,93499.0,0.04507]
[1763494033337,0.01283,93498.0,93486.0,0.00026742]
[1763494033536,0.01283,93498.0,93462.0,0.01276]
[1763494033537,0.3608,93487.0,93464.0,0.09573951]
[1763494033737,0.3598,93469.0,93468.0,0.00010402]
[1763494034343,0.3588,93469.0,93468.0,0.00010402]
[1763494034942,0.3588,93469.0,93468.0,0.04517402]
[1763494036648,0.00016048,93478.0,93477.0,0.1521152]
[1763494036836,0.00016048,93478.0,93477.0,0.5129152]
[1763494037945,0.00016048,93478.0,93477.0,0.40587]
[1763494038144,0.00016048,93478.0,93477.0,0.04507]
[1763494045358,0.3608,93487.0,93486.0,0.04531]
[1763494046649,0.3608,93495.0,93492.0,0.01301]
[1763494046855,0.3608,93495.0,93494.0,0.04531]
[1763494048352,0.3608,93495.0,93494.0,0.1523357]
[1763494048558,0.3608,93495.0,93494.0,0.04531]
[1763494049058,0.3618,93495.0,93494.0,0.04531]
[1763494049760,0.3628,93495.0,93494.0,0.04531]
[1763494051256,0.3618,93495.0,93494.0,0.04531]
[1763494051554,0.3618,93495.0,93492.0,0.01301]
[1763494052058,0.25788,93494.0,93492.0,0.01301]
[1763494052254,0.25788,93494.0,93485.0,0.05796]
[1763494052562,0.3608,93487.0,93486.0,0.04495]
[1763494054958,0.38555572,93487.0,93469.0,0.25788]
[1763494055164,0.02476395,93486.0,93469.0,0.25788]
[1763494055365,0.28260395,93485.0,93465.0,0.3608]
[1763494055564,0.28260395,93485.0,93484.0,0.04511048]
[1763494055956,0.28260395,93485.0,93484.0,0.00016048]
[1763494056558,0.28360395,93485.0,93484.0,0.00016048]
[1763494056958,0.28260395,93485.0,93484.0,0.00016048]
[1763494057168,0.28360395,93485.0,93484.0,0.00016048]
[1763494057572,0.28260395,93485.0,93484.0,0.00016048]
[1763494057766,0.28460395,93485.0,93484.0,0.00016048]
[1763494058864,0.02676395,93485.0,93484.0,0.00016048]
[1763494059167,0.28460395,93485.0,93484.0,0.00016048]
[1763494059368,0.28460395,93485.0,93484.0,0.04511048]
[1763494059866,0.02676395,93485.0,93484.0,0.04511048]
[1763494060272,0.28460395,93485.0,93484.0,0.04511048]
[1763494060772,0.02676395,93485.0,93484.0,0.04511048]
[1763494062879,0.35256395,93487.0,93486.0,0.04495]
[1763494063379,0.02877,93494.0,93493.0,0.04495]
[1763494064980,0.02977,93494.0,93493.0,0.04495]
[1763494065979,0.001,93494.0,93493.0,0.04495]
[1763494066380,0.002,93494.0,93493.0,0.04495]
[1763494066582,0.001,93494.0,93493.0,0.04495]
[1763494066977,0.002,93494.0,93493.0,0.04495]
[1763494067371,0.001,93494.0,93493.0,0.04495]
[1763494067573,0.002,93494.0,93493.0,0.04495]
[1763494067885,4.8e-07,93496.0,93495.0,0.04495]
[1763494068280,0.3608,93506.0,93505.0,0.04495]
[1763494069178,0.40566,93506.0,93505.0,0.04495]
[1763494069379,0.3608,93506.0,93505.0,0.04495]
[1763494069777,0.02883,93515.0,93514.0,0.04495]
[1763494069778,0.43449,93515.0,93514.0,0.04495]
[1763494069979,0.38963,93515.0,93514.0,0.04495]
[1763494070184,0.02883,93515.0,93514.0,0.04495]
[1763494071676,0.40566,93524.0,93523.0,0.04495]
[1763494072982,0.40666,93524.0,93523.0,0.04495]
[1763494073588,0.40566,93524.0,93523.0,0.04495]
[1763494073788,0.40666,93524.0,93523.0,0.04495]
[1763494074881,0.43179114,93524.0,93523.0,0.04495]
[1763494075190,0.43079114,93524.0,93523.0,0.04495]
[1763494078099,0.40566,93524.0,93523.0,0.04495]
[1763494078489,0.43077466,93524.0,93523.0,0.04495]
[1763494079293,0.40566,93524.0,93523.0,0.04495]
[1763494080692,0.04356,93521.0,93520.0,0.00219803]
[1763494080892,0.3608,93524.0,93497.0,0.3608]
[1763494080893,0.04356,93507.0,93506.0,0.4167]
[1763494082489,0.04356,93507.0,93506.0,0.0559]
[1763494085189,0.3608,93516.0,93505.0,0.00016048]
[1763494085190,0.0543,93506.0,93505.0,0.00016048]
[1763494085396,0.04356,93487.0,93486.0,0.41653]
[1763494085990,0.04356,93487.0,93486.0,0.05573]
[1763494086193,0.04356,93479.0,93478.0,0.41653]
[1763494086897,0.04256,93479.0,93478.0,0.41653]
[1763494087601,0.04256,93479.0,93478.0,0.41753]